bitfinex-derivatives/quotes_BTCF0:USTF0_20260127
["timestamp","ask_amount","ask_price","bid_price","bid_amount"]
[1769527272235,0.11129666,87841.0,87818.0,0.0863814]
[1769527272430,0.11129666,87837.0,87812.0,0.0359669]
[1769527272630,0.11129666,87835.0,87814.0,0.011401]
[1769527272836,0.11129666,87835.0,87814.0,0.08911554]
[1769527273137,0.11129666,87835.0,87814.0,0.07771454]
[1769527273138,0.12269566,87835.0,87814.0,0.07771454]
[1769527273335,0.12269666,87829.0,87812.0,0.0359669]
[1769527273634,0.11129666,87829.0,87812.0,0.0359669]
[1769527276041,0.00012949,87828.0,87812.0,0.0359669]
[1769527276345,0.00012949,87828.0,87800.0,0.10256]
[1769527276346,0.11129666,87820.0,87800.0,0.10256]
[1769527276543,0.11129666,87817.0,87800.0,0.10256]
[1769527277333,0.11129666,87813.0,87800.0,0.10256]
[1769527278030,0.09831404,87813.0,87800.0,0.10256]
[1769527278632,0.11396,87822.0,87800.0,0.10256]
[1769527278832,0.011401,87820.0,87800.0,0.10256]
[1769527279032,0.011402,87814.0,87800.0,0.10256]
[1769527279236,0.011401,87818.0,87800.0,0.10256]
[1769527280139,0.11129666,87821.0,87800.0,0.10256]
[1769527280444,0.12269766,87821.0,87800.0,0.10256]
[1769527280940,0.11129666,87818.0,87800.0,0.10256]
[1769527281242,0.21385666,87822.0,87801.0,0.08953362]
[1769527281438,0.1026,87821.0,87801.0,0.08953362]
[1769527281745,0.11142615,87828.0,87801.0,0.08953362]
[1769527281946,0.1026,87827.0,87802.0,0.1368892]
[1769527282239,0.11129666,87826.0,87803.0,0.10327699]
[1769527282441,0.00012949,87828.0,87810.0,0.09187399]
[1769527282640,0.1026,87833.0,87817.0,0.09187399]
[1769527282833,0.1026,87842.0,87823.0,0.09187399]
[1769527283028,0.1026,87844.0,87823.0,0.09187399]
[1769527283250,0.1026,87844.0,87824.0,0.04735558]
[1769527283444,0.10802416,87843.0,87824.0,0.04735558]
[1769527283647,0.10802416,87839.0,87824.0,0.04735558]
[1769527284051,0.011399,87835.0,87819.0,0.30024]
[1769527284238,0.10802416,87834.0,87820.0,0.04735558]
[1769527284438,0.10802416,87834.0,87812.0,0.0359669]
[1769527284639,0.10987988,87830.0,87813.0,0.1026]
[1769527284835,0.10987988,87830.0,87813.0,0.14995558]
[1769527286341,0.011399,87832.0,87814.0,0.09005955]
[1769527286742,0.011399,87835.0,87814.0,0.09005955]
[1769527287051,0.011399,87833.0,87814.0,0.09005955]
[1769527287249,0.1026,87836.0,87812.0,0.0359669]
[1769527287250,0.10987988,87818.0,87812.0,4.8e-07]
[1769527287443,0.10987988,87835.0,87812.0,4.8e-07]
[1769527287642,0.10987988,87830.0,87812.0,4.8e-07]
[1769527288137,0.12127988,87826.0,87812.0,4.8e-07]
[1769527288453,0.10987988,87824.0,87812.0,4.8e-07]
[1769527289146,0.1026,87825.0,87812.0,4.8e-07]
[1769527289341,0.114,87825.0,87812.0,4.8e-07]
[1769527289651,0.10987988,87824.0,87812.0,4.8e-07]
[1769527289847,0.10987988,87818.0,87812.0,4.8e-07]
[1769527290151,0.10987988,87808.0,87796.0,0.1026]
[1769527290349,0.10987988,87808.0,87793.0,0.00797335]
[1769527290350,0.10987988,87804.0,87793.0,0.00797335]
[1769527290551,0.10987988,87804.0,87786.0,0.01139127]
[1769527290552,0.10987988,87801.0,87786.0,0.01139127]
[1769527291845,0.12128288,87805.0,87786.0,0.01139127]
[1769527292539,0.011403,87802.0,87786.0,0.01139127]
[1769527292848,0.10987988,87805.0,87786.0,0.01139127]
[1769527293251,0.011403,87804.0,87786.0,0.01139127]
[1769527293453,0.12128288,87804.0,87786.0,0.01139127]
[1769527293654,0.011404,87797.0,87786.0,0.01139127]
[1769527293955,0.011404,87797.0,87783.0,0.1026]
[1769527293956,0.12128388,87797.0,87783.0,0.1026]
[1769527294454,0.10987988,87797.0,87783.0,0.1026]
[1769527294655,0.21247988,87797.0,87783.0,0.1026]
[1769527294854,0.21247988,87797.0,87771.0,0.30028]
[1769527294855,0.011404,87795.0,87774.0,0.1026]
[1769527295052,0.10987988,87796.0,87774.0,0.1026]
[1769527295356,0.10987988,87796.0,87775.0,0.09263592]
[1769527295558,0.10987988,87793.0,87774.0,0.1026]
[1769527295752,0.10987988,87793.0,87768.0,0.1027053]
[1769527296353,0.12128388,87791.0,87768.0,0.1027053]
[1769527296658,0.30028,87796.0,87768.0,0.1027053]
[1769527296659,0.12128488,87789.0,87768.0,0.1027053]
[1769527296864,0.30028,87796.0,87769.0,0.08814573]
[1769527296865,0.12128388,87792.0,87769.0,0.08814573]
[1769527297159,0.30028,87796.0,87769.0,0.08814573]
[1769527297160,0.12128488,87790.0,87769.0,0.08814573]
[1769527297359,0.10987988,87790.0,87768.0,0.1027053]
[1769527297668,0.10987988,87782.0,87768.0,0.1027053]
[1769527297854,0.12128488,87789.0,87768.0,0.1027053]
[1769527298056,0.10987988,87789.0,87768.0,0.1027053]
[1769527298258,0.011405,87784.0,87768.0,0.1027053]
[1769527298555,0.011406,87780.0,87768.0,0.0001053]
[1769527298746,0.10987988,87777.0,87756.0,0.1026]
[1769527298954,0.011407,87773.0,87756.0,0.1026]
[1769527299155,0.30032,87781.0,87756.0,0.1026]
[1769527299156,0.10987988,87770.0,87756.0,0.1026]
[1769527299767,0.00011697,87769.0,87756.0,0.1026]
[1769527301847,0.00011697,87769.0,87756.0,0.21350097]
[1769527302455,0.10987988,87778.0,87757.0,0.11090097]
[1769527302456,0.10264,87776.0,87757.0,0.11090097]
[1769527302961,0.10987988,87775.0,87756.0,0.1026]
[1769527303160,0.10987988,87771.0,87756.0,0.1026]
[1769527303350,0.10987988,87768.0,87756.0,0.1026]
[1769527304566,0.10987988,87774.0,87756.0,0.1026]
[1769527305151,0.10264,87780.0,87757.0,0.12230997]
[1769527305451,0.114044,87794.0,87768.0,0.11090097]
[1769527305758,0.10264,87796.0,87770.0,0.11090097]
[1769527305957,0.10264,87796.0,87775.0,0.011406]
[1769527306159,0.10264,87807.0,87778.0,0.11090097]
[1769527306462,0.011402,87813.0,87789.0,0.11090097]
[1769527306659,0.10987988,87817.0,87791.0,0.11090097]
[1769527306854,0.10264,87819.0,87791.0,0.11090097]
[1769527307161,0.011402,87811.0,87791.0,0.11090097]
[1769527307355,0.10264,87819.0,87791.0,0.12230497]
[1769527307545,0.10264,87819.0,87796.0,0.11090097]
[1769527307751,0.0114,87826.0,87800.0,0.11090097]
[1769527307965,0.0114,87826.0,87802.0,0.11090097]
[1769527308166,0.10987988,87828.0,87802.0,0.11090097]
[1769527308167,0.0114,87822.0,87802.0,0.11090097]
[1769527308763,0.12087988,87827.0,87802.0,0.11090097]
[1769527309353,0.0114,87822.0,87802.0,0.11090097]
[1769527309551,0.011401,87819.0,87802.0,0.11090097]
[1769527309760,0.011402,87807.0,87794.0,0.11090097]
[1769527310057,0.10987988,87818.0,87795.0,0.51390097]
[1769527310256,0.10987988,87818.0,87796.0,0.10264]
[1769527310663,0.10987988,87818.0,87782.0,0.11090097]
[1769527310962,0.10987988,87818.0,87770.0,0.21053051]
[1769527310963,0.10987988,87814.0,87787.0,0.11090097]
[1769527311149,0.10987988,87814.0,87788.0,0.10264]
[1769527311351,0.011402,87813.0,87789.0,0.11090097]
[1769527312058,0.011402,87811.0,87789.0,0.11090097]
[1769527312566,0.011401,87815.0,87791.0,0.11090097]
[1769527312766,0.011402,87810.0,87788.0,0.10264]
[1769527312965,0.011401,87818.0,87784.0,0.11090097]
[1769527312966,0.10987988,87813.0,87784.0,0.11090097]
[1769527313168,0.10987988,87807.0,87785.0,0.403]
[1769527313361,0.011403,87804.0,87785.0,0.403]
[1769527314863,0.011403,87800.0,87785.0,0.403]
[1769527315268,0.12694066,87804.0,87785.0,0.403]
[1769527316054,0.30036,87820.0,87786.0,0.1149773]
[1769527316366,0.011402,87811.0,87791.0,0.1149773]
[1769527316567,0.011402,87809.0,87791.0,0.1149773]
[1769527316768,0.011402,87809.0,87785.0,0.403]
[1769527316769,0.11553766,87811.0,87785.0,0.403]
[1769527316967,0.11553766,87811.0,87785.0,0.5179773]
[1769527317165,0.011402,87807.0,87786.0,0.1149773]
[1769527317769,0.11553766,87811.0,87786.0,0.1149773]
[1769527318267,0.011403,87806.0,87786.0,0.1149773]
[1769527318671,0.11553766,87811.0,87786.0,0.1149773]
[1769527319169,0.011401,87816.0,87789.0,0.1149773]
[1769527319364,0.403,87819.0,87785.0,0.403]
[1769527319365,0.10264,87819.0,87795.0,0.1149773]
[1769527319571,0.10264,87819.0,87797.0,0.1149773]
[1769527319768,0.21817766,87819.0,87797.0,0.1149773]
[1769527320267,0.11553766,87813.0,87796.0,0.10264]
[1769527320573,0.11553766,87808.0,87796.0,0.10264]
[1769527320763,0.011402,87807.0,87796.0,0.10264]
[1769527321270,0.11553766,87808.0,87772.0,0.08953613]
[1769527321471,0.14787036,87790.0,87753.0,0.00797698]
[1769527321672,0.011407,87773.0,87753.0,0.00797698]
[1769527321973,0.011408,87763.0,87753.0,0.00797698]
[1769527322175,0.10264,87771.0,87742.0,0.1149773]
[1769527322364,0.12087537,87770.0,87746.0,0.12637377]
[1769527322565,0.011406,87782.0,87749.0,0.1149773]
[1769527322871,0.10264,87783.0,87753.0,0.1149773]
[1769527322872,0.114046,87783.0,87753.0,0.1149773]
[1769527323069,0.30036,87791.0,87760.0,0.1149773]
[1769527323070,0.011405,87787.0,87760.0,0.1149773]
[1769527323388,0.011406,87781.0,87761.0,0.1149773]
[1769527323671,0.10264,87783.0,87761.0,0.1149773]
[1769527324875,0.114046,87783.0,87761.0,0.1149773]
[1769527325077,0.10264,87783.0,87761.0,0.1149773]
[1769527325873,0.114045,87783.0,87761.0,0.1149773]
[1769527326176,0.10264,87783.0,87761.0,0.1149773]
[1769527326373,0.011406,87782.0,87761.0,0.1149773]
[1769527326673,0.114046,87783.0,87761.0,0.1149773]
[1769527326872,0.011406,87781.0,87761.0,0.1149773]
[1769527327272,0.10264,87783.0,87761.0,0.1149773]
[1769527327976,0.011406,87779.0,87762.0,0.10264]
[1769527328178,0.114046,87783.0,87763.0,0.1149773]
[1769527328478,0.10264,87783.0,87763.0,0.1149773]
[1769527328779,0.114046,87783.0,87763.0,0.1149773]
[1769527328969,0.10264,87783.0,87763.0,0.1149773]
[1769527330077,0.114046,87783.0,87763.0,0.1149773]
[1769527331270,0.011406,87781.0,87763.0,0.1149773]
[1769527331470,0.10264,87783.0,87763.0,0.1149773]
[1769527332480,0.114045,87783.0,87763.0,0.1149773]
[1769527332985,0.0022781,87793.0,87771.0,0.1149773]
[1769527332986,0.011405,87790.0,87771.0,0.1149773]
[1769527333282,0.0022781,87793.0,87773.0,0.1149773]
[1769527333475,0.0022781,87793.0,87774.0,0.10264]
[1769527334074,0.011405,87784.0,87774.0,0.10264]
[1769527334467,0.11553766,87787.0,87767.0,0.1149773]
[1769527334671,0.011406,87781.0,87768.0,0.40304]
[1769527334867,0.011405,87784.0,87769.0,0.10264]
[1769527335082,0.011406,87782.0,87769.0,0.10264]
[1769527335287,0.1318133,87781.0,87769.0,0.10264]
[1769527335672,0.1318133,87781.0,87770.0,0.1149773]
[1769527335881,0.0022781,87793.0,87770.0,0.1149773]
[1769527336478,0.011405,87789.0,87770.0,0.1149773]
[1769527336986,0.011404,87792.0,87770.0,0.1149773]
[1769527337678,0.0022781,87793.0,87770.0,0.1150173]
[1769527337880,0.011404,87791.0,87770.0,0.1150173]
[1769527338080,0.011405,87789.0,87770.0,0.1150173]
[1769527338378,0.11553766,87791.0,87771.0,0.40304]
[1769527338582,0.011405,87787.0,87771.0,0.40304]
[1769527338784,0.11553766,87791.0,87771.0,0.40304]
[1769527338974,0.011405,87785.0,87772.0,0.10264]
[1769527339481,0.011405,87788.0,87772.0,0.2176173]
[1769527340682,0.011405,87788.0,87772.0,0.2176573]
[1769527340988,0.011405,87786.0,87772.0,0.2176573]
[1769527341879,0.011405,87788.0,87772.0,0.2176573]
[1769527342281,0.011405,87788.0,87772.0,0.2176973]
[1769527344587,0.011405,87786.0,87772.0,0.2176973]
[1769527344889,0.011405,87788.0,87772.0,0.2176973]
[1769527345086,0.011405,87786.0,87772.0,0.2176973]
[1769527345688,0.011405,87788.0,87772.0,0.2176973]
[1769527345888,0.11553766,87791.0,87772.0,0.2176973]
[1769527346385,0.011405,87785.0,87772.0,0.2176973]
[1769527347389,0.011405,87787.0,87772.0,0.2176973]
[1769527347588,0.011405,87790.0,87772.0,8e-05]
[1769527347884,0.011405,87790.0,87763.0,4e-05]
[1769527347885,0.011407,87769.0,87763.0,4e-05]
[1769527348090,0.12890164,87768.0,87756.0,0.40304]
[1769527348587,0.12890164,87767.0,87756.0,0.40304]
[1769527348893,0.12893222,87766.0,87756.0,0.40304]
[1769527349094,0.11891525,87778.0,87756.0,0.40304]
[1769527349291,0.11891525,87775.0,87756.0,0.40304]
[1769527349492,0.12891848,87774.0,87748.0,0.01141]
[1769527349797,0.12891848,87774.0,87751.0,0.11077989]
[1769527349989,0.011407,87773.0,87751.0,0.11077989]
[1769527350184,0.12891848,87772.0,87751.0,0.11077989]
[1769527350582,0.12891848,87772.0,87753.0,0.11077989]
[1769527350785,0.11891525,87788.0,87763.0,0.11077989]
[1769527350991,0.011405,87784.0,87763.0,0.11077989]
[1769527351682,0.011406,87781.0,87763.0,0.11077989]
[1769527351879,0.11905007,87783.0,87763.0,0.11077989]
[1769527352079,0.11905007,87781.0,87763.0,0.11077989]
[1769527352882,0.11891525,87777.0,87762.0,0.374954]
[1769527353092,0.011406,87783.0,87755.0,0.40308]
[1769527353093,0.011408,87765.0,87755.0,0.40308]
[1769527353291,0.11891525,87769.0,87755.0,0.40308]
[1769527353292,0.13032225,87769.0,87755.0,0.40308]
[1769527353489,0.11891525,87769.0,87755.0,0.40308]
[1769527353689,0.011407,87773.0,87756.0,0.00647405]
[1769527353896,0.10264,87776.0,87756.0,0.00647405]
[1769527354980,0.011407,87772.0,87756.0,0.00647405]
[1769527355390,0.011407,87775.0,87756.0,0.00647405]
[1769527356194,0.011407,87771.0,87756.0,0.00647405]
[1769527356795,0.011407,87772.0,87756.0,0.00647405]
[1769527356995,0.10264,87776.0,87756.0,0.00647405]
[1769527357201,0.114046,87776.0,87756.0,0.00647405]
[1769527357497,0.011407,87774.0,87756.0,0.00647405]
[1769527357691,0.10264,87776.0,87756.0,0.00647405]
[1769527357891,0.011407,87770.0,87756.0,0.00647405]
[1769527358091,0.011407,87773.0,87756.0,0.00647405]
[1769527358294,0.13121186,87773.0,87755.0,0.40308]
[1769527359602,0.10264,87776.0,87756.0,0.00032308]
[1769527360302,0.10264,87776.0,87761.0,0.00032308]
[1769527360496,0.10264,87776.0,87763.0,0.00032308]
[1769527360897,0.1198923,87786.0,87763.0,0.00032308]
[1769527361694,0.10268,87789.0,87760.0,0.14787036]
[1769527362200,0.12,87788.0,87756.0,0.1139283]
[1769527362405,0.12,87788.0,87756.0,0.011409]
[1769527362702,0.12,87788.0,87756.0,0.1253373]
[1769527362895,0.12,87786.0,87756.0,0.1139283]
[1769527363101,0.12,87784.0,87757.0,0.40312]
[1769527363297,0.12,87782.0,87758.0,0.10268]
[1769527363604,0.12,87780.0,87758.0,0.10268]
[1769527363798,0.12114503,87779.0,87758.0,0.114089]
[1769527363994,0.12114503,87779.0,87758.0,0.10268]
[1769527364194,0.12114503,87778.0,87762.0,0.011408]
[1769527364400,0.12114503,87777.0,87759.0,0.40312]
[1769527364600,0.12114503,87776.0,87759.0,0.414529]
[1769527364798,0.12114503,87775.0,87759.0,0.414529]
[1769527365000,0.12114503,87774.0,87761.0,0.011408]
[1769527365203,0.10268,87789.0,87759.0,0.40312]
[1769527365401,0.12125485,87788.0,87769.0,0.011407]
[1769527365700,0.12125485,87787.0,87773.0,0.011407]
[1769527365906,0.12125485,87786.0,87772.0,0.30044]
[1769527366199,0.12125485,87785.0,87772.0,0.30044]
[1769527366405,0.12125485,87784.0,87772.0,0.30044]
[1769527366702,0.12125485,87783.0,87772.0,0.30044]
[1769527366904,0.12125485,87782.0,87772.0,0.30044]
[1769527367108,0.12125485,87782.0,87760.0,0.14787036]
[1769527367109,0.24125485,87781.0,87748.0,0.008367]
[1769527367307,0.12125485,87780.0,87749.0,0.40312]
[1769527367496,0.12125485,87779.0,87755.0,0.11392376]
[1769527367695,0.12125485,87778.0,87761.0,0.011408]
[1769527367899,0.12125485,87777.0,87763.0,0.011408]
[1769527368098,0.12125485,87776.0,87763.0,0.011408]
[1769527368296,0.12,87788.0,87763.0,0.011408]
[1769527368495,0.24102227,87787.0,87763.0,0.01201333]
[1769527368696,0.24102227,87786.0,87763.0,0.01201333]
[1769527369000,0.12122405,87785.0,87764.0,0.00060533]
[1769527370998,0.24044866,87785.0,87764.0,0.00060533]
[1769527371199,0.12122405,87784.0,87765.0,0.40308]
[1769527371398,0.11922461,87785.0,87765.0,0.40308]
[1769527371399,0.12122405,87783.0,87765.0,0.40308]
[1769527371597,0.12122405,87782.0,87765.0,0.414488]
[1769527371792,0.12122405,87781.0,87767.0,0.00232614]
[1769527371997,0.12122405,87780.0,87767.0,0.00232614]
[1769527372200,0.12122405,87779.0,87765.0,0.40308]
[1769527372397,0.12122405,87778.0,87765.0,0.40308]
[1769527372592,0.12122405,87777.0,87765.0,0.40308]
[1769527372805,0.12122405,87776.0,87765.0,0.40697029]
[1769527373005,0.11891525,87787.0,87766.0,0.00389029]
[1769527373204,0.11891525,87785.0,87766.0,0.00389029]
[1769527373504,0.12117523,87784.0,87766.0,0.00389029]
[1769527374700,0.11869183,87783.0,87765.0,0.40308]
[1769527374901,0.12117523,87782.0,87765.0,0.4070045]
[1769527375304,0.12117523,87782.0,87766.0,0.0039245]
[1769527375504,0.12117523,87781.0,87766.0,0.0039245]
[1769527375695,0.12117523,87780.0,87766.0,0.0039245]
[1769527375895,0.12117523,87779.0,87766.0,0.0039245]
[1769527376206,0.12117523,87778.0,87766.0,0.0039245]
[1769527376408,0.12117523,87777.0,87766.0,0.0039245]
[1769527376710,0.12117523,87776.0,87766.0,0.0039245]
[1769527377009,0.11869183,87786.0,87766.0,0.0039245]
[1769527377209,0.11864715,87784.0,87766.0,0.0039245]
[1769527377411,0.12115784,87783.0,87766.0,0.0039245]
[1769527377811,0.23980499,87783.0,87766.0,0.0039245]
[1769527378011,0.12115784,87782.0,87766.0,0.0039245]
[1769527378201,0.12115784,87782.0,87765.0,0.40308]
[1769527378202,0.11864715,87781.0,87765.0,0.40308]
[1769527378402,0.12115784,87780.0,87765.0,0.40308]
[1769527378708,0.12115784,87780.0,87765.0,0.414488]
[1769527378909,0.12115784,87780.0,87766.0,0.0043558]
[1769527379304,0.12115784,87780.0,87768.0,0.0043558]
[1769527379507,0.12115784,87779.0,87768.0,0.0043558]
[1769527379810,0.12115784,87778.0,87765.0,0.4074358]
[1769527380004,0.12115784,87777.0,87765.0,0.4074358]
[1769527380202,0.11854806,87782.0,87765.0,0.4188438]
[1769527380203,0.12115784,87776.0,87765.0,0.4188438]
[1769527380398,0.11854806,87782.0,87766.0,0.40308]
[1769527380602,0.1189363,87781.0,87766.0,0.40308]
[1769527380910,0.1189363,87780.0,87766.0,0.40308]
[1769527381107,0.1189363,87779.0,87766.0,0.40308]
[1769527381302,0.1189363,87778.0,87766.0,0.40308]
[1769527381502,0.1189363,87777.0,87766.0,0.40308]
[1769527381703,0.11854806,87782.0,87766.0,0.40308]
[1769527382010,0.11897935,87781.0,87766.0,0.40978486]
[1769527382206,0.11897935,87780.0,87766.0,0.40978486]
[1769527382401,0.11897935,87779.0,87768.0,0.00670486]
[1769527382603,0.12,87792.0,87766.0,0.40308]
[1769527382804,0.12,87798.0,87767.0,0.12533919]
[1769527383008,0.12,87798.0,87766.0,0.40308]
[1769527383200,0.12,87792.0,87773.0,0.011407]
[1769527383405,0.12,87792.0,87768.0,0.011407]
[1769527383806,0.12,87792.0,87764.0,0.011408]
[1769527384010,0.131406,87778.0,87765.0,0.40308]
[1769527384306,0.12,87778.0,87766.0,0.10264]
[1769527384509,0.011406,87783.0,87766.0,0.10264]
[1769527384707,0.12,87780.0,87766.0,0.10264]
[1769527385511,0.12,87772.0,87754.0,0.008367]
[1769527385811,0.12,87772.0,87756.0,0.011409]
[1769527386113,0.12,87772.0,87766.0,4e-05]
[1769527387107,0.11796861,87771.0,87766.0,4e-05]
[1769527387303,0.11796861,87769.0,87761.0,0.30044]
[1769527387510,0.11796861,87769.0,87724.0,0.2277765]
[1769527387715,0.11796861,87769.0,87713.0,0.00798062]
[1769527387716,0.11796861,87769.0,87732.0,0.10264]
[1769527387914,0.11796861,87769.0,87734.0,0.30044]
[1769527389006,0.11796861,87759.0,87734.0,0.30044]
[1769527389212,0.11796861,87757.0,87737.0,0.011411]
[1769527389417,0.11796861,87757.0,87739.0,0.00029326]
[1769527389418,0.22060861,87757.0,87739.0,0.00029326]
[1769527389612,0.11796861,87756.0,87739.0,0.00029326]
[1769527391421,0.114049,87757.0,87739.0,0.00029326]
[1769527391422,0.11796861,87752.0,87739.0,0.00029326]
[1769527392220,0.12937861,87749.0,87739.0,0.00029326]
[1769527392928,0.01141,87752.0,87739.0,0.00029326]
[1769527393117,0.12937861,87752.0,87739.0,0.00029326]
[1769527393520,0.11796861,87752.0,87739.0,0.00029326]
[1769527393823,0.01141,87751.0,87739.0,0.00029326]
[1769527394323,0.01141,87750.0,87739.0,0.00029326]
[1769527394518,0.11796861,87745.0,87734.0,0.30044]
[1769527395318,0.12937861,87752.0,87734.0,0.30044]
[1769527395520,0.10264,87757.0,87734.0,0.30044]
[1769527395521,0.11796861,87749.0,87734.0,0.30044]
[1769527396824,0.11796861,87756.0,87735.0,0.11531841]
[1769527397333,0.12937761,87756.0,87735.0,0.11531841]
[1769527397524,0.11796861,87756.0,87735.0,0.11531841]
[1769527397726,0.10264,87757.0,87735.0,0.11531841]
[1769527397727,0.11796861,87754.0,87735.0,0.11531841]
[1769527398726,0.10268,87759.0,87745.0,0.01141]
[1769527398928,0.10268,87763.0,87742.0,0.11531841]
[1769527399130,0.11796861,87759.0,87742.0,0.11531841]
[1769527399921,0.10268,87763.0,87743.0,0.11531841]
[1769527400216,0.011405,87784.0,87754.0,0.11531841]
[1769527400420,0.11796861,87779.0,87756.0,0.11531841]
[1769527400628,0.11796861,87779.0,87755.0,0.011409]
[1769527400629,0.11796861,87762.0,87742.0,0.10268]
[1769527400928,0.11796861,87758.0,87742.0,0.10268]
[1769527401725,0.12937661,87763.0,87743.0,0.11531841]
[1769527401923,0.11796861,87762.0,87743.0,0.11531841]
[1769527402324,0.011409,87759.0,87743.0,0.11531841]
[1769527402833,0.12937661,87762.0,87743.0,0.11531841]
[1769527403228,0.12371578,87759.0,87742.0,0.10268]
[1769527404030,0.11230678,87759.0,87742.0,0.10268]
[1769527404336,0.011409,87758.0,87742.0,0.10268]
[1769527404537,0.11230678,87759.0,87742.0,0.10268]
[1769527404737,0.01141,87749.0,87742.0,0.10268]
[1769527404933,0.01141,87749.0,87731.0,0.1142154]
[1769527404934,0.1100479,87749.0,87731.0,0.10268]
[1769527405236,0.1100479,87745.0,87722.0,9.792e-05]
[1769527405428,0.1100479,87750.0,87726.0,0.02281206]
[1769527405629,0.1100479,87750.0,87726.0,0.13702746]
[1769527406034,0.1100479,87748.0,87726.0,0.13702746]
[1769527406241,0.1100479,87748.0,87726.0,0.12561446]
[1769527406426,0.10268,87747.0,87726.0,0.12561446]
[1769527406626,0.10268,87747.0,87730.0,0.011412]
[1769527406935,0.10268,87747.0,87726.0,0.12561446]
[1769527406936,0.11409,87747.0,87727.0,0.1142154]
[1769527407140,0.1100479,87746.0,87727.0,0.1142154]
[1769527407437,0.10268,87747.0,87730.0,0.1142154]
[1769527407629,0.1100479,87752.0,87726.0,0.01139906]
[1769527407829,0.1100479,87748.0,87728.0,0.011413]
[1769527408030,0.1100479,87745.0,87726.0,0.01139906]
[1769527408237,0.1100479,87743.0,87726.0,0.01139906]
[1769527408834,0.01141,87746.0,87726.0,0.12561446]
[1769527409140,0.1100479,87743.0,87726.0,0.12561446]
[1769527409533,0.1100479,87743.0,87726.0,0.13702746]
[1769527409741,0.1100479,87749.0,87726.0,0.13702746]
[1769527410240,0.1100479,87749.0,87728.0,0.011413]
[1769527410537,0.01141,87751.0,87731.0,0.1142154]
[1769527410733,0.10268,87751.0,87731.0,0.1142154]
[1769527410945,0.01141,87750.0,87731.0,0.1142154]
[1769527411334,0.10268,87751.0,87731.0,0.1142154]
[1769527411528,0.11409,87751.0,87731.0,0.1142154]
[1769527411929,0.2241379,87751.0,87731.0,0.1142154]
[1769527412639,0.1100479,87750.0,87731.0,0.1142154]
[1769527412939,0.1100479,87750.0,87732.0,0.011412]
[1769527413139,0.1100479,87756.0,87736.0,0.1256274]
[1769527413330,0.171215,87805.0,87742.0,0.011411]
[1769527413331,0.1100479,87768.0,87742.0,0.011411]
[1769527413639,0.00797335,87793.0,87752.0,0.1142154]
[1769527413640,0.10882326,87767.0,87752.0,0.1142154]
[1769527413840,0.1214549,87772.0,87752.0,0.1142154]
[1769527413841,0.1100479,87772.0,87752.0,0.1142154]
[1769527414150,0.011407,87769.0,87752.0,0.1142154]
[1769527414441,0.1100479,87767.0,87748.0,0.10268]
[1769527414643,0.1100479,87767.0,87749.0,0.01141]
[1769527414832,0.1100479,87767.0,87749.0,0.1256254]
[1769527415034,0.1214559,87767.0,87749.0,0.1142154]
[1769527415425,0.10669159,87766.0,87749.0,0.1142154]
[1769527415630,0.1214559,87767.0,87749.0,0.1142154]
[1769527415631,0.10669159,87765.0,87749.0,0.1142154]
[1769527415841,0.1100479,87767.0,87749.0,0.1142154]
[1769527416239,0.1100479,87767.0,87748.0,0.10268]
[1769527416638,0.1214559,87766.0,87748.0,0.10268]
[1769527417036,0.1100479,87766.0,87748.0,0.2168954]
[1769527417238,0.1214559,87766.0,87748.0,0.2168954]
[1769527418232,0.1100479,87766.0,87748.0,0.2168954]
[1769527418436,0.1100479,87766.0,87749.0,0.1142154]
[1769527419637,0.011407,87770.0,87749.0,0.1256254]
[1769527419832,0.1214549,87770.0,87749.0,0.1256254]
[1769527420136,0.1100479,87770.0,87749.0,0.1142154]
[1769527420441,0.1100479,87770.0,87749.0,0.1256254]
[1769527420742,0.011407,87768.0,87749.0,0.1142154]
[1769527420947,0.011408,87767.0,87749.0,0.1142154]
[1769527421248,0.1214559,87767.0,87749.0,0.1142154]
[1769527421448,0.1214559,87764.0,87748.0,0.10268]
[1769527421746,0.1100479,87761.0,87740.0,0.011411]
[1769527421947,0.1100479,87754.0,87741.0,0.4032]
[1769527422445,0.011409,87758.0,87741.0,0.4032]
[1769527424051,0.1100479,87761.0,87741.0,0.4032]
[1769527424247,0.011408,87760.0,87741.0,0.4032]
[1769527424542,0.10268,87763.0,87744.0,0.1256254]
[1769527424748,0.01166026,87776.0,87741.0,0.4032]
[1769527424749,0.1100479,87775.0,87749.0,0.1142154]
[1769527424945,0.1100479,87773.0,87749.0,0.1142154]
[1769527425445,0.10268,87775.0,87757.0,0.1142154]
[1769527425942,0.10268,87775.0,87759.0,0.1142154]
[1769527426352,0.10268,87775.0,87761.0,0.1256234]
[1769527426543,0.00025326,87776.0,87764.0,0.1142154]
[1769527426849,0.10268,87782.0,87766.0,0.1142154]
[1769527429744,0.10268,87782.0,87766.0,0.1256234]
[1769527429949,0.1100479,87792.0,87773.0,0.1142154]
[1769527430139,0.10268,87794.0,87773.0,0.1142154]
[1769527430335,0.10268,87794.0,87767.0,0.30048]
[1769527430336,0.10268,87794.0,87777.0,0.1142154]
[1769527432054,0.1100479,87792.0,87771.0,0.011407]
[1769527432252,0.1100479,87792.0,87767.0,0.30048]
[1769527432552,0.1100479,87792.0,87768.0,0.1142154]
[1769527433358,0.1100479,87792.0,87770.0,0.011407]
[1769527433554,0.1100479,87792.0,87770.0,0.1256224]
[1769527433756,0.1100479,87792.0,87772.0,0.011407]
[1769527434259,0.10268,87794.0,87773.0,0.11375628]
[1769527434755,0.10268,87794.0,87778.0,0.11375628]
[1769527435047,0.11047968,87804.0,87782.0,0.11375628]
[1769527435551,0.11047968,87804.0,87778.0,0.10268]
[1769527435552,0.11047968,87804.0,87787.0,0.12516128]
[1769527435855,0.11047968,87804.0,87789.0,0.011405]
[1769527436155,0.11047968,87804.0,87781.0,0.11375628]
[1769527436356,0.11047968,87804.0,87778.0,0.10268]
[1769527436357,0.11047968,87804.0,87785.0,0.011405]
[1769527436655,0.11047968,87804.0,87782.0,0.42560228]
[1769527436958,0.11047968,87804.0,87782.0,0.41419628]
[1769527438249,0.11047968,87804.0,87782.0,0.42560228]
[1769527438853,0.11047968,87804.0,87782.0,0.41419628]
[1769527439063,0.11047968,87804.0,87782.0,0.30044]
[1769527440150,0.11047968,87804.0,87775.0,0.30044]
[1769527440844,0.11047968,87789.0,87756.0,0.11375628]
[1769527441053,0.11047968,87787.0,87761.0,0.10264]
[1769527441258,0.11047968,87785.0,87761.0,0.10264]
[1769527441852,0.11047968,87785.0,87757.0,0.30044]